[Event "CCT Julius Baer-D3 2024"]
[Site "Online"]
[Date "2024.09.27"]
[Round "1.1"]
[White "Martirosyan, Haik M."]
[Black "Caruana, Fabiano"]
[Result "1-0"]
[ECO "D44"]
[WhiteElo "2667"]
[BlackElo "2798"]
[Annotator "TA"]
[PlyCount "89"]
[EventDate "2024.09.25"]
[EventType "swiss"]
[EventCountry "NET"]
[SourceTitle "playchess.com"]
[Source "ChessBase"]
[SourceQuality "1"]
[TimeControl "600+2"]

{[%evp 10,89,16,2,0,0,0,0,0,-3,4,0,22,0,43,23,63,50,49,51,38,54,61,4,33,31,50,50,67,64,63,52,73,74,104,89,114,115,106,81,135,129,123,96,115,112,110,106,108,104,241,302,270,242,307,298,301,284,296,301,298,297,276,240,227,197,191,197,300,320,303,271,282,271,318,345,266,258,595,595,4133,4133]} 1. d4 {[%emt 0:00:04]} Nf6 {[%emt 0:00:04]} 2. c4 {[%emt 0:00:07]} e6 {[%emt 0:00:01]} 3. Nf3 {[%emt 0:00:02]} d5 {[%emt 0:00:00]} 4. Nc3 {[%emt 0:00:01]} c6 {[%emt 0:00:01]} 5. Bg5 {[%emt 0:00:03]} dxc4 {[%emt 0:00:02]} 6. a4 {[%emt 0:00:09]} (6. e4 $5) 6... c5 {[%emt 0:00:04]} 7. e4 {[%emt 0:00:28]} cxd4 {[%emt 0:00:03]} 8. Qxd4 {[%emt 0:00:10]} Qxd4 {[%emt 0:00:08] The position is equal.} 9. Nxd4 {[%emt 0:00:00]} a6 {[%emt 0:00:05] Prevents Ndb5.} 10. Bxc4 {[%emt 0:00:16]} Bb4 {[%emt 0:00:58][%cal Bf8b4,Bb4a5,Ba5c7,Bc7d6,Bd6e7][%mdl 32]} 11. f3 {[%emt 0:00:08]} Nbd7 {[%emt 0:00:01]} 12. Nc2 {[%emt 0:01:06]} Ba5 {[%emt 0:01:08]} 13. Be3 {[%emt 0:00:20]} Ne5 {[%emt 0:00:09]} 14. Be2 {[%emt 0:00:01]} Bd7 {[%emt 0:00:13]} 15. b4 {[%emt 0:00:15]} Bc7 {[%emt 0:00:09]} 16. O-O {[%emt 0:00:17]} (16. O-O-O $14) 16... Rc8 {[%emt 0:00:10]} 17. Rfc1 {[%emt 0:00:35]} Bd6 {[%emt 0:00:09]} 18. Nd1 {[%emt 0:00:01][%cal Bc3d1,Bd1b2,Bb2d3,Bd3c5][%mdl 32]} Nc4 {[%emt 0:00:22]} 19. Bxc4 {[%emt 0:00:14]} Rxc4 {[%emt 0:00:00]} 20. Nb2 {[%emt 0:00:01]} Rc8 {[%emt 0:00:13]} 21. Nd3 $1 {[%emt 0:00:02]} Be7 {[%emt 0:00:48]} 22. Nc5 {[%emt 0:00:02]} Rc7 {[%emt 0:01:11]} 23. Na3 {[%emt 0:00:36][%cal Bc2a3,Ba3c4,Bc4a5][%mdl 32]} O-O {[%emt 0:01:46]} 24. Nc4 {[%emt 0:00:15]} Rd8 {[%emt 0:00:10]} ({Black should try} 24... Re8) 25. Na5 $16 {[%emt 0:01:07] White is more active.} Bxc5 {[%emt 0:01:16]} 26. bxc5 {[%emt 0:00:33]} ({But not} 26. Bxc5 b5 $14) 26... e5 {[%emt 0:00:21] [#] Wards off Bf4} 27. c6 $1 {[%emt 0:00:04][%mdl 512]} Rxc6 {[%emt 0:00:02]} (27... Bxc6 $2 {perishes.} 28. Bb6 Rdd7 29. Bxc7 Rxc7 30. Nxb7 $18 (30. Nxc6 bxc6 31. Rc5 Nd7 $18)) 28. Nxc6 {[%emt 0:00:06]} Bxc6 {[%emt 0:00:01]} 29. a5 {[%emt 0:00:05]} Nd7 {[%emt 0:00:18] [#] A mistake that costs the game.} (29... Rc8 $16 {is a better defense.} 30. Rd1 Nd7) 30. Rxc6 $1 $18 {[%emt 0:00:11][%mdl 512]} bxc6 {[%emt 0:00:02][%mdl 4096] Endgame. [#] KRB-KRN} 31. Rd1 $1 {[%emt 0:00:01]} Kf8 {[%emt 0:00:04]} 32. Bb6 {[%emt 0:00:02]} Ke7 {[%emt 0:00:00] Hoping for ...Nxb6.} 33. Bxd8+ {[%emt 0:00:06]} Kxd8 {[%emt 0:00:00] KR-KN} 34. Kf2 {[%emt 0:00:09]} Kc7 {[%emt 0:00:02]} 35. Ke3 {[%emt 0:00:04]} Nc5 {[%emt 0:00:10]} 36. Rb1 {[%emt 0:00:01] Prevents Nb3.} Nb7 {[%emt 0:00:19]} 37. Rb6 {[%emt 0:00:03]} Nxa5 {[%emt 0:00:01]} 38. Rxa6 {[%emt 0:00:01]} Nb7 {[%emt 0:00:02]} (38... Nc4+ {might work better.} 39. Kd3 Kb7) 39. Ra8 {[%emt 0:00:03]} Nd8 {[%emt 0:00:02]} 40. h4 {[%emt 0:00:06]} Kd7 {[%emt 0:00:05]} 41. Ra7+ {[%emt 0:00:06]} Ke6 {[%emt 0:00:10]} 42. g3 {[%emt 0:00:19][%cal Bg2g3,Bg3g4,Bg4g5][%mdl 32]} g6 {[%emt 0:00:02]} 43. g4 {[%emt 0:00:20] g5 would now be deadly.} h5 $2 {[%emt 0:00:08]} (43... h6 {is a better chance.} 44. Kd3 Kf6) 44. g5 {[%emt 0:00:11]} f6 {[%emt 0:00:07]} 45. Rg7 {[%emt 0:00:05] Weighted Error Value: White=0.08 (flawless) /Black=0.26 (precise) .  Mistake:       	White=1     	Black=4      Inaccurate:     	---       	Black=5      OK:         	White=16    	Black=11     Best:        	White=3     	Black=4      Strong:       	White=2     	---        Brilliant:      	White=1     	---} 1-0

[Event "CCT Julius Baer-D3 2024"]
[Site "Online"]
[Date "2024.09.27"]
[Round "1.1"]
[White "Deac, Bogdan-Daniel"]
[Black "Yoo, Christopher"]
[Result "1-0"]
[ECO "E04"]
[WhiteElo "2663"]
[BlackElo "2612"]
[Annotator "ChessBase"]
[PlyCount "121"]
[EventDate "2024.09.25"]
[EventType "swiss"]
[EventCountry "NET"]
[SourceTitle "playchess.com"]
[Source "ChessBase"]
[SourceQuality "1"]
[TimeControl "600+2"]

1. Nf3 {[%emt 0:00:02]} d5 {[%emt 0:00:22]} 2. g3 {[%emt 0:00:02]} Nf6 {[%emt 0:00:24]} 3. Bg2 {[%emt 0:00:02]} c5 {[%emt 0:00:20]} 4. O-O {[%emt 0:00:04]} Nc6 {[%emt 0:00:01]} 5. d4 {[%emt 0:00:02]} e6 {[%emt 0:00:01]} 6. c4 {[%emt 0:00:02]} dxc4 {[%emt 0:00:03]} 7. Qa4 {[%emt 0:00:29]} Bd7 {[%emt 0:00:17]} 8. Qxc4 {[%emt 0:00:01]} cxd4 {[%emt 0:00:48]} 9. Nxd4 {[%emt 0:00:03]} Rc8 {[%emt 0:00:21]} 10. Nc3 {[%emt 0:00:02]} Qa5 {[%emt 0:01:36]} 11. Nb3 {[%emt 0:01:18]} Qb4 {[%emt 0:00:08]} 12. Qxb4 {[%emt 0:00:08]} Bxb4 {[%emt 0:00:07]} 13. Be3 {[%emt 0:00:02]} Bxc3 {[%emt 0:00:26]} 14. bxc3 {[%emt 0:00:06]} Nd5 {[%emt 0:00:01]} 15. Bxd5 {[%emt 0:00:59]} exd5 {[%emt 0:00:03]} 16. Rfd1 {[%emt 0:00:00]} Be6 {[%emt 0:00:05]} 17. Nd4 {[%emt 0:00:09]} Nxd4 {[%emt 0:00:35]} 18. Bxd4 {[%emt 0:00:03]} O-O {[%emt 0:00:02]} 19. Rdb1 {[%emt 0:00:45]} Rc7 {[%emt 0:00:59]} 20. Bxa7 {[%emt 0:00:38]} Ra8 {[%emt 0:00:29]} 21. Bd4 {[%emt 0:00:07]} Ra4 {[%emt 0:00:14]} 22. a3 {[%emt 0:00:19]} h6 {[%emt 0:00:15]} 23. Rb4 {[%emt 0:00:09]} Rxb4 {[%emt 0:00:43]} 24. axb4 {[%emt 0:00:02]} b5 {[%emt 0:00:05]} 25. f3 {[%emt 0:00:16]} Kh7 {[%emt 0:00:08]} 26. Ra5 {[%emt 0:00:06]} Rb7 {[%emt 0:00:05]} 27. g4 {[%emt 0:00:07]} f5 {[%emt 0:00:11]} 28. h3 {[%emt 0:02:33]} fxg4 {[%emt 0:00:07]} 29. hxg4 {[%emt 0:00:01]} h5 {[%emt 0:00:03]} 30. gxh5 {[%emt 0:00:27]} Bf7 {[%emt 0:00:01]} 31. Ra6 {[%emt 0:00:02]} Bxh5 {[%emt 0:00:02]} 32. Rd6 {[%emt 0:00:01]} Bf7 {[%emt 0:00:00]} 33. Kf2 {[%emt 0:00:01]} Re7 {[%emt 0:00:10]} 34. e3 {[%emt 0:00:16]} Kg8 {[%emt 0:00:39]} 35. Rd8+ {[%emt 0:00:24]} Kh7 {[%emt 0:00:15]} 36. Rb8 {[%emt 0:00:39]} Be8 {[%emt 0:00:02]} 37. Bc5 {[%emt 0:00:01]} Re6 {[%emt 0:00:04]} 38. Rb7 {[%emt 0:00:07]} Rf6 {[%emt 0:00:25]} 39. Bd4 {[%emt 0:00:19]} Rf7 {[%emt 0:00:02]} 40. Rb6 {[%emt 0:00:01]} Rf5 {[%emt 0:00:13]} 41. Rb7 {[%emt 0:00:17]} Rf7 {[%emt 0:00:02]} 42. Rb8 {[%emt 0:00:00]} Bd7 {[%emt 0:00:05]} 43. Kg3 {[%emt 0:00:11]} g5 {[%emt 0:00:17]} 44. Rb6 {[%emt 0:00:02]} Be8 {[%emt 0:00:12]} 45. Re6 {[%emt 0:00:01]} Rf8 {[%emt 0:00:01]} 46. Rd6 {[%emt 0:00:02]} Bh5 {[%emt 0:00:01]} 47. f4 {[%emt 0:00:03]} gxf4+ {[%emt 0:00:01]} 48. exf4 {[%emt 0:00:00]} Rf5 {[%emt 0:00:01]} 49. Rd7+ {[%emt 0:00:02]} Kh6 {[%emt 0:00:03]} 50. Rb7 {[%emt 0:00:03]} Be2 {[%emt 0:00:01]} 51. Rb6+ {[%emt 0:00:02]} Kh7 {[%emt 0:00:02]} 52. Re6 {[%emt 0:00:01]} Bd1 {[%emt 0:00:05]} 53. Re1 {[%emt 0:00:04]} Bh5 {[%emt 0:00:03]} 54. Re7+ {[%emt 0:00:03]} Kh6 {[%emt 0:00:00]} 55. Re6+ {[%emt 0:00:01]} Kh7 {[%emt 0:00:01]} 56. Be5 {[%emt 0:00:01]} Be2 {[%emt 0:00:05]} 57. Rd6 {[%emt 0:00:02]} Bc4 {[%emt 0:00:01]} 58. Kg4 {[%emt 0:00:01]} Rf7 {[%emt 0:00:02]} 59. Bd4 {[%emt 0:00:03]} Be2+ {[%emt 0:00:03]} 60. Kg5 {[%emt 0:00:01]} Bd3 {[%emt 0:00:02]} 61. Rh6+ {[%emt 0:00:01]} 1-0

[Event "CCT Julius Baer-D3 2024"]
[Site "Online"]
[Date "2024.09.27"]
[Round "1.1"]
[White "h4parah5"]
[Black "Arm-Akiba"]
[Result "1-0"]
[ECO "C55"]
[WhiteElo "2657"]
[BlackElo "2547"]
[Annotator "NA"]
[PlyCount "101"]
[EventDate "2024.09.25"]
[EventType "swiss"]
[EventCountry "NET"]
[SourceTitle "playchess.com"]
[Source "ChessBase"]
[SourceQuality "1"]
[TimeControl "600+2"]

1. e4 {[%emt 0:00:03]} e5 {[%emt 0:00:04]} 2. Nf3 {[%emt 0:00:01]} Nc6 {[%emt 0:00:02]} 3. Bc4 {[%emt 0:00:00]} Nf6 {[%emt 0:00:05]} 4. d3 {[%emt 0:00:01]} Be7 {[%emt 0:00:02]} 5. O-O {[%emt 0:00:02]} O-O {[%emt 0:00:02]} 6. Nc3 {[%emt 0:00:01]} d6 {[%emt 0:00:07]} 7. a3 {[%emt 0:00:01]} Bg4 {[%emt 0:00:37]} 8. h3 {[%emt 0:00:04]} Bh5 {[%emt 0:00:03]} 9. Nd5 {[%emt 0:00:12]} Nxd5 {[%emt 0:00:27]} 10. Bxd5 {[%emt 0:00:04]} Qd7 {[%emt 0:00:25]} 11. Nxe5 {[%emt 0:00:40]} dxe5 {[%emt 0:00:12]} 12. Qxh5 {[%emt 0:00:03]} Bf6 {[%emt 0:00:01]} 13. Be3 {[%emt 0:00:08]} Ne7 {[%emt 0:00:23]} 14. Bb3 {[%emt 0:00:06]} a5 {[%emt 0:00:19]} 15. a4 {[%emt 0:00:03]} g6 {[%emt 0:00:18]} 16. Qe2 {[%emt 0:00:11]} Bg7 {[%emt 0:00:04]} 17. Rad1 {[%emt 0:00:18]} Kh8 {[%emt 0:00:12]} 18. f4 {[%emt 0:00:26]} exf4 {[%emt 0:00:06]} 19. Rxf4 {[%emt 0:00:03]} f5 {[%emt 0:00:18]} 20. Rff1 {[%emt 0:00:11]} Bxb2 {[%emt 0:01:12]} 21. Bf4 {[%emt 0:01:50]} Nc6 {[%emt 0:00:22]} 22. exf5 {[%emt 0:00:19]} Rxf5 {[%emt 0:00:52]} 23. Bg3 {[%emt 0:02:47]} Re8 {[%emt 0:00:28]} 24. Qg4 {[%emt 0:00:19]} Be5 {[%emt 0:02:04]} 25. Rxf5 {[%emt 0:00:22]} Qxf5 {[%emt 0:00:23]} 26. Qxf5 {[%emt 0:00:23]} gxf5 {[%emt 0:00:03]} 27. Re1 {[%emt 0:00:04]} Re7 {[%emt 0:00:36]} 28. Bh4 {[%emt 0:00:07]} Bd4+ {[%emt 0:00:08]} 29. Kf1 {[%emt 0:00:03]} Rxe1+ {[%emt 0:00:01]} 30. Bxe1 {[%emt 0:00:01]} b6 {[%emt 0:00:05]} 31. c3 {[%emt 0:00:06]} Be5 {[%emt 0:00:10]} 32. d4 {[%emt 0:00:03]} Bd6 {[%emt 0:00:01]} 33. Bc2 {[%emt 0:00:14]} Ne7 {[%emt 0:00:03]} 34. Ke2 {[%emt 0:00:08]} Kg7 {[%emt 0:00:03]} 35. Bb3 {[%emt 0:00:07]} h5 {[%emt 0:00:18]} 36. Kd3 {[%emt 0:00:11]} Ng6 {[%emt 0:00:12]} 37. Ke3 {[%emt 0:00:05]} Nf4 {[%emt 0:00:05]} 38. Kf3 {[%emt 0:00:06]} Ng6 {[%emt 0:00:02]} 39. Bd2 {[%emt 0:00:04]} Nh4+ {[%emt 0:00:02]} 40. Kf2 {[%emt 0:00:02]} Ng6 {[%emt 0:00:01]} 41. Bd1 {[%emt 0:00:06]} h4 {[%emt 0:00:01]} 42. Bf3 {[%emt 0:00:08]} Bg3+ {[%emt 0:00:02]} 43. Ke2 {[%emt 0:00:02]} Nf4+ {[%emt 0:00:01]} 44. Kd1 {[%emt 0:00:09]} Kf6 {[%emt 0:00:01]} 45. Kc2 {[%emt 0:00:02]} Ke6 {[%emt 0:00:03]} 46. Kb3 {[%emt 0:00:02]} Kd6 {[%emt 0:00:03]} 47. Kc4 {[%emt 0:00:02]} c6 {[%emt 0:00:05]} 48. Kb3 {[%emt 0:00:04]} Nd3 {[%emt 0:00:06]} 49. c4 {[%emt 0:00:22]} c5 {[%emt 0:00:07]} 50. Kc3 {[%emt 0:00:07]} Ne1 {[%emt 0:00:10]} 51. dxc5+ {[%emt 0:00:01]} 1-0

[Event "CCT Julius Baer-D3 2024"]
[Site "Online"]
[Date "2024.09.27"]
[Round "1.1"]
[White "Korobov, Anton"]
[Black "Ponkratov, Pavel"]
[Result "1/2-1/2"]
[ECO "D43"]
[WhiteElo "2650"]
[BlackElo "2564"]
[Annotator "ChessBase"]
[PlyCount "94"]
[EventDate "2024.09.25"]
[EventType "swiss"]
[EventCountry "NET"]
[SourceTitle "playchess.com"]
[Source "ChessBase"]
[SourceQuality "1"]
[TimeControl "600+2"]

1. d4 {[%emt 0:00:04]} Nf6 {[%emt 0:00:05]} 2. c4 {[%emt 0:00:01]} e6 {[%emt 0:00:02]} 3. Nf3 {[%emt 0:00:02]} d5 {[%emt 0:00:02]} 4. Nc3 {[%emt 0:00:02]} c6 {[%emt 0:00:02]} 5. Bg5 {[%emt 0:00:05]} h6 {[%emt 0:00:01]} 6. Bxf6 {[%emt 0:00:03]} Qxf6 {[%emt 0:00:02]} 7. a3 {[%emt 0:00:00]} dxc4 {[%emt 0:01:04]} 8. Ne5 {[%emt 0:00:05]} b5 {[%emt 0:00:10]} 9. g3 {[%emt 0:00:04]} a6 {[%emt 0:00:08]} 10. Bg2 {[%emt 0:00:11]} Bb7 {[%emt 0:00:15]} 11. a4 {[%emt 0:01:01]} Qe7 {[%emt 0:00:15]} 12. O-O {[%emt 0:00:09]} Qc7 {[%emt 0:00:04]} 13. e3 {[%emt 0:01:41]} Bd6 {[%emt 0:00:02]} 14. Ne4 {[%emt 0:00:22]} Nd7 {[%emt 0:01:47]} 15. Nxd7 {[%emt 0:00:35]} Qxd7 {[%emt 0:00:03]} 16. axb5 {[%emt 0:00:14]} axb5 {[%emt 0:00:04]} 17. Rxa8+ {[%emt 0:00:01]} Bxa8 {[%emt 0:00:01]} 18. Qg4 {[%emt 0:00:01]} Bf8 {[%emt 0:01:15]} 19. Ra1 {[%emt 0:00:07]} Qd8 {[%emt 0:00:11]} 20. Nc5 {[%emt 0:00:57]} h5 {[%emt 0:00:52]} 21. Nxe6 {[%emt 0:00:06]} hxg4 {[%emt 0:00:01]} 22. Nxd8 {[%emt 0:00:01]} Kxd8 {[%emt 0:00:01]} 23. Rxa8+ {[%emt 0:00:02]} Kc7 {[%emt 0:00:00]} 24. Ra6 {[%emt 0:01:22]} Rh6 {[%emt 0:00:07]} 25. Ra7+ {[%emt 0:00:01]} Kb6 {[%emt 0:00:01]} 26. Rxf7 {[%emt 0:00:00]} Rf6 {[%emt 0:00:01]} 27. Rxf6 {[%emt 0:00:20]} gxf6 {[%emt 0:00:07]} 28. Kf1 {[%emt 0:00:15]} c5 {[%emt 0:00:13]} 29. Be4 {[%emt 0:00:10]} cxd4 {[%emt 0:00:06]} 30. exd4 {[%emt 0:00:00]} Bh6 {[%emt 0:00:04]} 31. Bc2 {[%emt 0:00:11]} Bc1 {[%emt 0:00:31]} 32. b3 {[%emt 0:00:04]} Bb2 {[%emt 0:00:01]} 33. bxc4 {[%emt 0:00:02]} bxc4 {[%emt 0:00:00]} 34. Bf5 {[%emt 0:00:06]} Bxd4 {[%emt 0:00:09]} 35. Bxg4 {[%emt 0:00:03]} Kc5 {[%emt 0:00:01]} 36. Bf5 {[%emt 0:00:10]} Kd5 {[%emt 0:00:04]} 37. f4 {[%emt 0:00:06]} Kd6 {[%emt 0:00:10]} 38. h4 {[%emt 0:00:04]} Ke7 {[%emt 0:00:01]} 39. Kg2 {[%emt 0:00:06]} Kf7 {[%emt 0:00:05]} 40. Kf3 {[%emt 0:00:00]} c3 {[%emt 0:00:04]} 41. g4 {[%emt 0:00:06]} Kg7 {[%emt 0:00:15]} 42. g5 {[%emt 0:00:05]} fxg5 {[%emt 0:00:05]} 43. hxg5 {[%emt 0:00:06]} Bb6 {[%emt 0:00:11]} 44. Bc2 {[%emt 0:00:05]} Bd8 {[%emt 0:00:02]} 45. Kg4 {[%emt 0:00:01]} Be7 {[%emt 0:00:01]} 46. f5 {[%emt 0:00:01]} Bd8 {[%emt 0:00:02]} 47. Bb3 {[%emt 0:00:00]} Be7 {[%emt 0:00:01]} 1/2-1/2

[Event "CCT Julius Baer-D3 2024"]
[Site "Online"]
[Date "2024.09.27"]
[Round "1.1"]
[White "Theodorou, Nikolas"]
[Black "frederiksvane"]
[Result "1-0"]
[ECO "A06"]
[WhiteElo "2646"]
[BlackElo "2627"]
[Annotator "ChessBase"]
[PlyCount "91"]
[EventDate "2024.09.25"]
[EventType "swiss"]
[EventCountry "NET"]
[SourceTitle "playchess.com"]
[Source "ChessBase"]
[SourceQuality "1"]
[TimeControl "600+2"]

1. Nf3 {[%emt 0:00:03]} d5 {[%emt 0:00:07]} 2. b3 {[%emt 0:00:02]} Nf6 {[%emt 0:00:21]} 3. Bb2 {[%emt 0:00:01]} e6 {[%emt 0:00:01]} 4. Rg1 {[%emt 0:00:07]} c5 {[%emt 0:00:17]} 5. g4 {[%emt 0:00:02]} d4 {[%emt 0:00:21]} 6. e3 {[%emt 0:00:02]} Nc6 {[%emt 0:00:31]} 7. Bb5 {[%emt 0:00:02]} Qb6 {[%emt 0:01:31]} 8. Bxc6+ {[%emt 0:00:34]} bxc6 {[%emt 0:00:03]} 9. exd4 {[%emt 0:00:00]} cxd4 {[%emt 0:00:39]} 10. Bxd4 {[%emt 0:00:04]} c5 {[%emt 0:00:01]} 11. Bxf6 {[%emt 0:00:09]} gxf6 {[%emt 0:00:00]} 12. Nc3 {[%emt 0:00:34]} Bb7 {[%emt 0:00:02]} 13. Qe2 {[%emt 0:00:12]} Qc6 {[%emt 0:00:56]} 14. Rg3 {[%emt 0:01:45]} h5 {[%emt 0:00:45]} 15. gxh5 {[%emt 0:00:00]} Rxh5 {[%emt 0:00:32]} 16. O-O-O {[%emt 0:00:02]} O-O-O {[%emt 0:00:04]} 17. Nd4 {[%emt 0:00:01]} cxd4 {[%emt 0:01:08]} 18. Qxh5 {[%emt 0:00:02]} Kb8 {[%emt 0:00:09]} 19. Na4 {[%emt 0:00:48]} Bd6 {[%emt 0:01:10]} 20. Qxf7 {[%emt 0:00:33]} Bxg3 {[%emt 0:00:02]} 21. hxg3 {[%emt 0:00:07]} e5 {[%emt 0:00:16]} 22. Kb2 {[%emt 0:00:20]} Rc8 {[%emt 0:00:21]} 23. Rc1 {[%emt 0:00:31]} d3 {[%emt 0:00:23]} 24. Nc3 {[%emt 0:00:31]} Qf3 {[%emt 0:00:07]} 25. Qd7 {[%emt 0:00:19]} dxc2 {[%emt 0:00:24]} 26. Rxc2 {[%emt 0:00:23]} Qxf2 {[%emt 0:00:06]} 27. Qd6+ {[%emt 0:00:02]} Ka8 {[%emt 0:00:01]} 28. Nb5 {[%emt 0:00:01]} Qb6 {[%emt 0:00:24]} 29. Rxc8+ {[%emt 0:03:35]} Bxc8 {[%emt 0:00:00]} 30. Qxb6 {[%emt 0:00:00]} axb6 {[%emt 0:00:00]} 31. Nc7+ {[%emt 0:00:00]} Kb7 {[%emt 0:00:01]} 32. Ne8 {[%emt 0:00:01]} f5 {[%emt 0:00:06]} 33. Nd6+ {[%emt 0:00:01]} Kc7 {[%emt 0:00:01]} 34. Nxc8 {[%emt 0:00:01]} Kxc8 {[%emt 0:00:00]} 35. Kc3 {[%emt 0:00:05]} Kc7 {[%emt 0:00:04]} 36. a4 {[%emt 0:00:01]} Kc6 {[%emt 0:00:01]} 37. b4 {[%emt 0:00:01]} Kd5 {[%emt 0:00:03]} 38. Kd3 {[%emt 0:00:03]} Kd6 {[%emt 0:00:12]} 39. Ke3 {[%emt 0:00:01]} Kd5 {[%emt 0:00:01]} 40. d3 {[%emt 0:00:00]} Ke6 {[%emt 0:00:04]} 41. a5 {[%emt 0:00:10]} bxa5 {[%emt 0:00:01]} 42. bxa5 {[%emt 0:00:00]} Kd5 {[%emt 0:00:01]} 43. a6 {[%emt 0:00:02]} Kc6 {[%emt 0:00:00]} 44. d4 {[%emt 0:00:01]} e4 {[%emt 0:00:01]} 45. d5+ {[%emt 0:00:02]} Kb6 {[%emt 0:00:01]} 46. d6 {[%emt 0:00:00]} 1-0

[Event "CCT Julius Baer-D3 2024"]
[Site "Online"]
[Date "2024.09.27"]
[Round "1.1"]
[White "Gelfand, Boris"]
[Black "Predke, Alexandr"]
[Result "1-0"]
[ECO "E16"]
[WhiteElo "2644"]
[BlackElo "2591"]
[Annotator "ChessBase"]
[PlyCount "97"]
[EventDate "2024.09.25"]
[EventType "swiss"]
[EventCountry "NET"]
[SourceTitle "playchess.com"]
[Source "ChessBase"]
[SourceQuality "1"]
[TimeControl "600+2"]

1. d4 {[%emt 0:00:04]} Nf6 {[%emt 0:00:05]} 2. c4 {[%emt 0:00:01]} e6 {[%emt 0:00:01]} 3. Nf3 {[%emt 0:00:01]} b6 {[%emt 0:00:02]} 4. g3 {[%emt 0:00:01]} Bb7 {[%emt 0:00:01]} 5. Bg2 {[%emt 0:00:01]} Bb4+ {[%emt 0:00:01]} 6. Bd2 {[%emt 0:00:02]} Bxd2+ {[%emt 0:00:03]} 7. Qxd2 {[%emt 0:00:01]} O-O {[%emt 0:00:01]} 8. O-O {[%emt 0:00:04]} c5 {[%emt 0:00:04]} 9. dxc5 {[%emt 0:00:34]} bxc5 {[%emt 0:00:00]} 10. Rd1 {[%emt 0:00:11]} d5 {[%emt 0:00:03]} 11. cxd5 {[%emt 0:00:24]} exd5 {[%emt 0:00:00]} 12. Nh4 {[%emt 0:00:39]} Nbd7 {[%emt 0:00:01]} 13. Nc3 {[%emt 0:00:02]} Nb6 {[%emt 0:00:04]} 14. a4 {[%emt 0:01:06]} Rb8 {[%emt 0:00:22]} 15. Qc2 {[%emt 0:01:19]} d4 {[%emt 0:00:21]} 16. Nb5 {[%emt 0:00:49]} Bxg2 {[%emt 0:00:29]} 17. Nxg2 {[%emt 0:00:01]} Qe7 {[%emt 0:00:20]} 18. Rac1 {[%emt 0:00:25]} a6 {[%emt 0:01:53]} 19. Na3 {[%emt 0:00:03]} Rbc8 {[%emt 0:00:36]} 20. e3 {[%emt 0:00:09]} Qd7 {[%emt 0:00:49]} 21. Nc4 {[%emt 0:00:38]} Nfd5 {[%emt 0:01:11]} 22. a5 {[%emt 0:00:26]} Nxc4 {[%emt 0:01:07]} 23. Qxc4 {[%emt 0:00:01]} Nf6 {[%emt 0:00:00]} 24. Qxa6 {[%emt 0:00:09]} Ra8 {[%emt 0:00:26]} 25. Qc4 {[%emt 0:00:40]} Ne4 {[%emt 0:00:28]} 26. exd4 {[%emt 0:00:23]} Ng5 {[%emt 0:00:01]} 27. Nh4 {[%emt 0:00:54]} Nh3+ {[%emt 0:00:01]} 28. Kf1 {[%emt 0:00:01]} Qb7 {[%emt 0:00:28]} 29. d5 {[%emt 0:00:01]} Qxb2 {[%emt 0:00:11]} 30. Rc2 {[%emt 0:00:05]} Qf6 {[%emt 0:00:02]} 31. Kg2 {[%emt 0:00:13]} g5 {[%emt 0:00:20]} 32. Kxh3 {[%emt 0:00:07]} gxh4 {[%emt 0:00:03]} 33. Qxh4 {[%emt 0:00:10]} Qxh4+ {[%emt 0:00:11]} 34. Kxh4 {[%emt 0:00:02]} Rxa5 {[%emt 0:00:00]} 35. Kg5 {[%emt 0:00:08]} Kg7 {[%emt 0:00:07]} 36. Kf5 {[%emt 0:00:01]} Re8 {[%emt 0:00:02]} 37. f4 {[%emt 0:00:11]} Kf8 {[%emt 0:00:20]} 38. g4 {[%emt 0:00:04]} Re3 {[%emt 0:00:15]} 39. Rc4 {[%emt 0:00:08]} Ke7 {[%emt 0:00:04]} 40. d6+ {[%emt 0:00:11]} Kd7 {[%emt 0:00:04]} 41. Kf6 {[%emt 0:00:02]} Re6+ {[%emt 0:00:11]} 42. Kxf7 {[%emt 0:00:01]} Rxd6 {[%emt 0:00:06]} 43. Rxd6+ {[%emt 0:00:01]} Kxd6 {[%emt 0:00:00]} 44. f5 {[%emt 0:00:16]} Kd5 {[%emt 0:00:04]} 45. Rc1 {[%emt 0:00:02]} c4 {[%emt 0:00:16]} 46. g5 {[%emt 0:00:03]} Ke5 {[%emt 0:00:09]} 47. f6 {[%emt 0:00:08]} Ra7+ {[%emt 0:00:05]} 48. Kg8 {[%emt 0:00:01]} Kf5 {[%emt 0:00:04]} 49. f7 {[%emt 0:00:02]} 1-0